lending/lending_fUSD_20240110
["ID","MTS","AMOUNT","RATE_DAILY","PERIOD"]
[311102545,1704905449270,-500.0,0.0003863,4]
[311102546,1704905449279,-345.46,0.0003863,4]
[311102547,1704905449288,-500.0,0.0003863,4]
[311102548,1704905449297,-500.0,0.0003863,4]
[311102549,1704905449307,-500.0,0.0003863,4]
[311102550,1704905449316,-163.69791724,0.00038654,7]
[311102551,1704905449325,-500.0,0.00038657,10]
[311102552,1704905449334,-1500.1687911,0.00038739,2]
[311102553,1704905449343,-467.65,0.00038765,2]
[311102554,1704905449352,-500.0,0.00038767,2]
[311102555,1704905449362,-2294.68107791,0.00038779,12]
[311102556,1704905449370,-13855.37202194,0.000388,4]
[311102557,1704905449379,-2135.17,0.000388,3]
[311102558,1704905449389,-2135.17,0.000388,3]
[311102559,1704905449398,-2135.17,0.000388,3]
[311102560,1704905449407,-2135.17,0.000388,3]
[311102561,1704905449416,-2135.17,0.000388,3]
[311102562,1704905449425,-2135.17,0.000388,3]
[311102563,1704905449434,-2135.17,0.000388,3]
[311102564,1704905449442,-2135.17,0.000388,3]
[311102565,1704905449451,-2135.17,0.000388,3]
[311102566,1704905449461,-2135.17,0.000388,3]
[311102567,1704905449470,-2135.17,0.000388,3]
[311102568,1704905449479,-2135.17,0.000388,3]
[311102569,1704905449490,-2135.17,0.000388,3]
[311102570,1704905449500,-2135.17,0.000388,3]
[311102571,1704905449509,-2135.17,0.000388,3]
[311102572,1704905449519,-2135.17,0.000388,3]
[311102573,1704905449528,-2135.17,0.000388,3]
[311102574,1704905449538,-2135.17,0.000388,3]
[311102575,1704905449547,-2135.17,0.000388,3]
[311102576,1704905449556,-2135.17,0.000388,3]
[311102577,1704905449566,-211.15900098,0.00038832,7]
[311102578,1704905449575,-172.26351288,0.00038862,30]
[311102579,1704905449586,-155.03847875,0.00038883,2]
[311102580,1704905449595,-13688.46009659,0.00038885,2]
[311102581,1704905449604,-163.69791724,0.00038901,7]
[311102582,1704905449613,-500.0,0.00038904,4]
[311102583,1704905449622,-202.42055951,0.00038904,4]
[311102584,1704905449633,-500.0,0.00038904,4]
[311102585,1704905449642,-500.0,0.00038904,7]
[311102586,1704905449651,-397.39,0.00038904,4]
[311102587,1704905449660,-318.05,0.00038904,4]
[311102588,1704905449669,-610.12,0.00038904,4]
[311102589,1704905449678,-500.0,0.00038904,4]
[311102590,1704905449687,-500.0,0.00038904,4]
[311102591,1704905449696,-287.03,0.00038904,4]
[311102592,1704905449705,-588.8058319,0.00038904,4]
[311102593,1704905449714,-500.0,0.00038904,4]
[311102594,1704905449722,-500.0,0.00038904,4]
[311102595,1704905449730,-865.23,0.00038904,4]
[311102596,1704905449739,-2222.92,0.00038904,4]
[311102597,1704905449748,-474.26,0.00038904,4]
[311102598,1704905449757,-500.0,0.00038904,4]
[311102599,1704905449766,-500.0,0.00038904,4]
[311102600,1704905449775,-500.0,0.00038904,4]
[311102601,1704905449784,-500.0,0.00038904,4]
[311102602,1704905449794,-500.0,0.00038904,4]
[311102603,1704905449803,-500.0,0.00038904,4]
[311102604,1704905449812,-500.0,0.00038904,4]
[311102605,1704905449821,-500.0,0.00038904,4]
[311102606,1704905449830,-305.07,0.00038904,4]
[311102607,1704905449840,-500.0,0.00038904,4]
[311102608,1704905449849,-664.54,0.00038904,4]
[311102609,1704905449858,-493.55,0.00038904,4]
[311102610,1704905449867,-500.0,0.00038904,4]
[311102611,1704905449876,-500.0,0.00038904,4]
[311102612,1704905449887,-155.82079444,0.00038904,4]
[311102613,1704905449898,-500.0,0.00038904,4]
[311102614,1704905449908,-500.0,0.00038904,4]
[311102615,1704905450063,-500.0,0.00038904,4]
[311102616,1704905450073,-500.0,0.00038904,4]
[311102617,1704905450083,-445.58,0.00038904,4]
[311102618,1704905450092,-500.0,0.00038904,4]
[311102619,1704905450102,-500.0,0.00038904,4]
[311102620,1704905450111,-550.46,0.00038904,4]
[311102621,1704905450120,-500.0,0.00038904,4]
[311102622,1704905450130,-500.0,0.00038904,4]
[311102623,1704905450140,-605.47616919,0.00038904,4]
[311102624,1704905450149,-500.0,0.00038904,4]
[311102625,1704905450159,-500.0,0.00038904,4]
[311102626,1704905450168,-500.0,0.00038904,4]
[311102627,1704905450177,-500.0,0.00038904,4]
[311102628,1704905450187,-402.96887832,0.00038904,4]
[311102629,1704905450197,-1243.28,0.00038904,4]
[311102630,1704905450206,-562.73,0.00038904,4]
[311102631,1704905450215,-500.0,0.00038904,4]
[311102632,1704905450225,-840.89,0.00038904,4]
[311102633,1704905450234,-500.0,0.00038904,4]
[311102634,1704905450244,-500.0,0.00038904,4]
[311102635,1704905450253,-500.0,0.00038904,4]
[311102636,1704905450263,-500.0,0.00038904,4]
[311102637,1704905450273,-818.8,0.00038904,4]
[311102638,1704905450284,-500.0,0.00038904,4]
[311102639,1704905450294,-500.0,0.00038904,4]
[311102640,1704905450304,-204.44,0.00038904,4]
[311102641,1704905450314,-500.0,0.00038904,4]
[311102642,1704905450325,-1909.8,0.00038904,4]
[311102643,1704905450336,-500.0,0.00038904,4]
[311102644,1704905450346,-1698.2,0.00038904,4]
[311102645,1704905450356,-781.21,0.00038904,4]
[311102646,1704905450367,-500.0,0.00038904,4]
[311102647,1704905450378,-500.0,0.00038904,4]
[311102648,1704905450389,-500.0,0.00038904,4]
[311102649,1704905450399,-500.0,0.00038904,4]
[311102650,1704905450409,-983.68,0.00038904,4]
[311102651,1704905450419,-500.0,0.00038904,4]
[311102652,1704905450429,-500.0,0.00038904,4]
[311102653,1704905450439,-500.0,0.00038904,15]
[311102654,1704905450449,-500.0,0.00038904,4]
[311102655,1704905450459,-500.0,0.00038904,4]
[311102656,1704905450470,-500.0,0.00038904,4]
[311102657,1704905450482,-1088.2,0.00038904,4]
[311102658,1704905450492,-500.0,0.00038904,4]
[311102659,1704905450502,-500.0,0.00038904,4]
[311102660,1704905450511,-500.0,0.00038904,4]
[311102661,1704905450526,-500.0,0.00038904,4]
[311102662,1704905450536,-500.0,0.00038904,4]
[311102663,1704905450546,-500.0,0.00038904,4]
[311102664,1704905450558,-500.0,0.00038904,4]
[311102665,1704905450568,-500.0,0.00038904,4]
[311102666,1704905450578,-500.0,0.00038904,4]
[311102667,1704905450589,-857.73,0.00038904,4]
[311102668,1704905450600,-182.34,0.00038904,4]
[311102669,1704905450610,-294.78,0.00038904,4]
[311102670,1704905450621,-352.46,0.00038904,4]
[311102671,1704905450632,-355.88,0.00038904,4]
[311102672,1704905450642,-500.0,0.00038904,4]
[311102673,1704905450652,-500.0,0.00038904,4]
[311102674,1704905450663,-558.56024412,0.00038904,4]
[311102675,1704905450674,-372.03,0.00038904,4]
[311102676,1704905450684,-500.0,0.00038904,4]
[311102677,1704905450695,-535.53665787,0.00038904,4]
[311102678,1704905450705,-500.0,0.00038904,4]
[311102679,1704905450716,-634.57,0.00038904,4]
[311102680,1704905450726,-500.0,0.00038904,4]
[311102681,1704905450736,-500.0,0.00038904,4]
[311102682,1704905450748,-163.69791724,0.00038906,7]
[311102683,1704905450758,-500.0,0.00038931,7]
[311102684,1704905450768,-500.0,0.00038931,7]
[311102685,1704905450779,-1500.1687911,0.00038938,2]
[311102686,1704905450790,-281.65321815,0.0003898,2]
[311102687,1704905450800,-200.0,0.00038987,2]
[311102688,1704905450811,-100000.0,0.00039,2]
[311102689,1704905450822,-5800.0,0.00039,2]
[311102690,1704905450832,-2500.0,0.00039,7]
[311102691,1704905450843,-3192.02618612,0.00039,4]
[311102692,1704905450853,-1427.01104071,0.00039,2]
[311102693,1704905450864,-28906.67,0.00039,7]
[311102694,1704905450874,-5800.0,0.00039008,2]
[311102695,1704905450885,-5800.0,0.00039017,2]
[311102696,1704905450899,-5800.0,0.00039025,2]
[311102697,1704905450910,-5800.0,0.00039034,2]
[311102698,1704905450921,-5800.0,0.00039042,2]
[311102699,1704905450932,-5800.0,0.00039051,2]
[311102700,1704905450944,-150.80834968,0.00039059,7]
[311102701,1704905450954,-5800.0,0.00039059,2]
[311102702,1704905450964,-5800.0,0.00039068,2]
[311102703,1704905450975,-5800.0,0.00039076,2]
[311102704,1704905450985,-5800.0,0.00039085,2]
[311102705,1704905450996,-16678.63065239,0.00039086,30]
[311102706,1704905451017,-6570.847221,0.00039086,30]
[311102707,1704905451088,-217.52826999,0.00031798,4]
[311102708,1704905451099,-301.82008248,0.00034619,4]
[311102709,1704905451109,-150.0,0.00038356,7]
[311102710,1704905451120,-7978.85648579,0.00039086,30]
[311102711,1704905451133,-603.77500001,0.00039086,30]
[311102712,1704905451150,-190.63243622,0.00034619,4]
[311102713,1704905451161,-18167.89064081,0.00039086,30]
[311102714,1704905451171,-5800.0,0.00039093,2]
[311102715,1704905451181,-5800.0,0.00039102,2]
[311102716,1704905451191,-3246.45499977,0.0003911,2]
[311102718,1704905531637,215.14462505,0.000229,4]
[311102719,1704905548576,300.0,0.000223,8]
[311102720,1704905550718,600.0,0.000224,8]
[311102721,1704905552023,1003.05262789,0.00021848,2]
[311102722,1704905552822,900.0,0.000225,8]
[311102723,1704905554897,1200.0,0.000226,8]
[311102724,1704905556988,1500.0,0.000227,8]
[311102725,1704905559070,300.0,0.000228,8]
[311102727,1704905561160,300.0,0.000229,8]
[311102729,1704905615951,176.01,0.00022,2]
[311102731,1704905649715,263.99964119,0.00022,2]
[311102732,1704905666017,578.0,0.00022,2]
[311102734,1704905996235,445.52,0.00020523,2]
[311102735,1704906018353,156.79,0.00022014,2]
[311102736,1704906018566,156.79,0.00022396,2]
[311102737,1704906023778,181.98,0.00022138,2]
[311102739,1704906086993,23890.0,0.00022092,2]
[311102740,1704906176596,478.34,0.00021981,2]
[311102741,1704906181341,2000.0,0.00021975,2]
[311102742,1704906192636,184.1752571,0.00022415,2]
[311102743,1704906197615,184.17525697,0.00022441,2]
[311102744,1704906202695,184.17525697,0.00022466,2]
[311102745,1704906207633,184.17525697,0.00022492,2]
[311102746,1704906231811,176.01,0.00022,2]
[311102747,1704906317356,640.11,0.00021815,2]
[311102748,1704906326147,376.63058056,0.00022501,2]
[311102749,1704906333405,251.5167354,0.00022501,2]
[311102768,1704906359786,557.92988483,0.00022501,2]
[311102769,1704906362382,3039.7923389,0.00022501,2]
[311102770,1704906362551,3185.89838635,0.00022501,2]
[311102772,1704906384536,3183.23633535,0.00021981,2]
[311102807,1704906409914,251.5167354,0.00022501,2]
[311102820,1704906436603,157.31981128,0.00022501,2]
[311102822,1704906478443,155.0,0.00022501,2]
[311102849,1704906519116,157.31981128,0.00022501,2]
[311102850,1704906521955,156.79,0.00022003,2]
[311102851,1704906537316,413.46,0.00021846,2]
[311102853,1704906552940,155.0,0.00022501,2]
[311102903,1704906600429,423.24,0.00019938,2]
[311102904,1704906600671,423.24,0.00022202,2]
[311102905,1704906607169,2000.0,0.00021856,2]
[311102907,1704906611044,446.45,0.00021856,2]
[311102908,1704906625098,1000.0,0.00021851,2]
[311102941,1704906631818,-604.7260143,0.00022502,2]
[311102942,1704906631832,-1101.80023115,0.00022502,2]
[311102943,1704906631841,-184.17525697,0.00022517,2]
[311102944,1704906631850,-184.17525697,0.00022543,2]
[311102945,1704906631859,-1274.99835078,0.00022546,2]
[311102946,1704906631869,-350.81,0.00022548,2]
[311102947,1704906631880,-184.17525697,0.00022568,2]
[311102948,1704906631889,-184.17525697,0.00022594,2]
[311102949,1704906631898,-184.17525697,0.00022619,2]
[311102950,1704906631906,-184.17525697,0.00022645,2]
[311102951,1704906631916,-184.17525697,0.0002267,2]
[311102952,1704906631925,-184.17525697,0.00022696,2]
[311102953,1704906631934,-184.17525697,0.00022721,2]
[311102954,1704906631943,-184.17525697,0.00022747,2]
[311102955,1704906631952,-184.17525697,0.00022772,2]
[311102956,1704906631961,-557.42388297,0.00022783,2]
[311102957,1704906631971,-184.17525697,0.00022798,2]
[311102958,1704906631980,-2370.0401,0.00022799,2]
[311102959,1704906631989,-184.17525697,0.00022823,2]
[311102960,1704906631999,-446.45,0.00022834,2]
[311102961,1704906632008,-184.17525697,0.00022849,2]
[311102962,1704906632019,-184.17525697,0.00022874,2]
[311102963,1704906632029,-657.15466029,0.00022889,2]
[311102964,1704906632038,-314.17754438,0.00022897,2]
[311102965,1704906632047,-3037.17424926,0.00022897,2]
[311102966,1704906632057,-156.86023686,0.00022897,2]
[311102967,1704906632066,-155.0,0.00022897,2]
[311102968,1704906632075,-1008.79126347,0.00022898,2]
[311102969,1704906632084,-1377.03583153,0.00022898,2]
[311102970,1704906632094,-1377.0358315,0.00022899,2]
[311102971,1704906632104,-2066.92786203,0.00022899,2]
[311102972,1704906632113,-57432.34995223,0.00022899,2]
[311102973,1704906632126,-3755.1079601,0.00022899,2]
[311102974,1704906632139,-1358.5,0.00022899,2]
[311102975,1704906632153,-610.18376816,0.00022899,2]
[311102977,1704906632164,-2256.2,0.00022899,2]
[311102978,1704906632179,-620.97486927,0.00022899,2]
[311102981,1704906632191,-546.69999,0.00022899,2]
[311102983,1704906632202,-687.257,0.00022899,2]
[311102985,1704906632213,-499.6,0.00022899,2]
[311102987,1704906632225,-301.48,0.00022899,2]
[311102990,1704906632236,-762.71,0.00022899,2]
[311102992,1704906632247,-440.0,0.00022899,2]
[311102994,1704906632259,-406.76,0.00022899,2]
[311102995,1704906632270,-532.8,0.00022899,2]
[311102996,1704906632281,-444.0,0.00022899,2]
[311102997,1704906632292,-612.26946522,0.00022899,2]
[311102998,1704906632304,-400.0,0.00022899,2]
[311102999,1704906632315,-7652.70891006,0.00022899,2]
[311103001,1704906632335,-870.25017859,0.00022899,2]
[311103003,1704906632346,-576.57357286,0.00022899,2]
[311103005,1704906632359,-746.41878368,0.00022899,2]
[311103016,1704906635453,155.0,0.00022501,2]
[311103030,1704906637867,-1226.16017942,0.00022899,2]
[311103038,1704906637982,-85548.1719497,0.00022899,2]
[311103039,1704906637991,-1377.0358315,0.00022899,2]
[311103040,1704906638000,-1000.0,0.000229,2]
[311103041,1704906638010,-24675.8122,0.000229,2]
[311103042,1704906638021,-4584.51834785,0.000229,2]
[311103043,1704906638030,-850.60795078,0.000229,2]
[311103044,1704906638039,-184.17525697,0.000229,2]
[311103045,1704906638049,-328.28626872,0.000229,2]
[311103046,1704906638058,-7949.20358404,0.000229,2]
[311103047,1704906638068,-271.17144473,0.000229,2]
[311103048,1704906638077,-180.27760622,0.000229,2]
[311103049,1704906638086,-4584.51834783,0.00022909,2]
[311103050,1704906638096,-1008.79126345,0.00022917,2]
[311103051,1704906638105,-3778.90974631,0.00022917,2]
[311103052,1704906638117,-805.60860152,0.00022917,2]
[311103053,1704906638126,-4584.51834783,0.00022926,2]
[311103054,1704906638138,-4584.51834783,0.00022935,2]
[311103055,1704906638148,-1008.79126345,0.00022936,2]
[311103056,1704906638157,-413.46,0.00022939,2]
[311103057,1704906638166,-4584.51834783,0.00022944,2]
[311103058,1704906638176,-4584.51834783,0.00022952,2]
[311103059,1704906638185,-1008.79126345,0.00022955,2]
[311103060,1704906638194,-4584.51834783,0.00022961,2]
[311103061,1704906638204,-4584.51834783,0.0002297,2]
[311103062,1704906638213,-1008.79126345,0.00022973,2]
[311103063,1704906638222,-4584.51834783,0.00022979,2]
[311103064,1704906638231,-4584.51834783,0.00022987,2]
[311103065,1704906638240,-1008.79126345,0.00022992,2]
[311103066,1704906638249,-4584.51834783,0.00022996,2]
[311103067,1704906638259,-27909.18103694,0.00022997,2]
[311103068,1704906638461,-12434.39868565,0.00022997,2]
[311103069,1704906638471,-227.94064555,0.00022998,2]
[311103070,1704906638481,-474.41987552,0.00022998,2]
[311103071,1704906638490,-309.58159212,0.00022998,2]
[311103072,1704906638500,-155.0,0.00022998,2]
[311103073,1704906638510,-188.82380756,0.00022998,2]
[311103075,1704906638519,-158.4761644,0.00022998,2]
[311103077,1704906638528,-376.11195413,0.00022998,2]
[311103079,1704906638537,-1154.8281513,0.00022998,2]
[311103081,1704906638546,-155.10005977,0.00022998,2]
[311103083,1704906638556,-5800.88551344,0.00022998,2]
[311103086,1704906638565,-278.75448039,0.00022998,2]
[311103088,1704906638574,-155.0,0.00022998,2]
[311103089,1704906638583,-220.56685301,0.00022998,2]
[311103091,1704906638592,-5210.25785161,0.00022998,2]
[311103094,1704906638601,-155.0,0.00022998,2]
[311103095,1704906638610,-277.87491388,0.00022998,2]
[311103097,1704906638619,-218.32545283,0.00022998,2]
[311103099,1704906638628,-10000.03,0.00022999,2]
[311103101,1704906638639,-1000.0,0.00022999,2]
[311103103,1704906638649,-150.0,0.00022999,2]
[311103104,1704906638658,-150.0,0.00022999,2]
[311103106,1704906638666,-150.0,0.00022999,2]
[311103108,1704906638676,-150.0,0.00022999,2]
[311103110,1704906638685,-150.0,0.00022999,2]
[311103113,1704906638694,-150.0,0.00022999,2]
[311103115,1704906638703,-155.25154108,0.00022999,2]
[311103116,1704906638712,-150.0,0.00022999,2]
[311103119,1704906638721,-210.47070988,0.00022999,2]
[311103121,1704906638730,-81134.22465599,0.00023,2]
[311103123,1704906638741,-59614.50279653,0.00023,2]
[311103125,1704906638756,-651421.2976204,0.00023,2]
[311103128,1704906638767,-1310.13807581,0.00023,2]
[311103130,1704906638778,-8018263.90081845,0.00023,2]
[311103132,1704906638787,-932.61376497,0.00023,2]
[311103134,1704906638796,-2214165.50336378,0.00023,2]
[311103136,1704906638807,-108770.77601911,0.00023,2]
[311103138,1704906638817,-453.87,0.00023,2]
[311103140,1704906638828,-2776.99734937,0.00023,2]
[311103143,1704906638840,-1512.623474,0.00023,2]
[311103145,1704906638851,-112457.25637523,0.00023,2]
[311103147,1704906638862,-3368.08959021,0.00023,2]
[311103150,1704906638878,-298.62800448,0.00023,2]
[311103305,1704906640409,-1377.0358315,0.000229,2]
[311103307,1704906640419,-259.83585243,0.000229,2]
[311103309,1704906640430,-180.81680649,0.000229,2]
[311103311,1704906640439,-3900.58175348,0.00023,2]
[311103315,1704906640465,-565.24001,0.00023,2]
[311103376,1704906641026,-721299.78891438,0.00023,2]
[311103378,1704906641036,-1008.79126345,0.00023011,2]
[311103380,1704906641045,-1008.79126345,0.0002303,2]
[311103382,1704906641054,-3310.82739141,0.0002313,2]
[311103384,1704906641064,-156.79,0.00023149,2]
[311103386,1704906641073,-300.0,0.00023219,2]
[311103388,1704906641083,-450.0,0.00023288,4]
[311103390,1704906641092,-450.0,0.00023288,4]
[311103392,1704906641101,-180.94315466,0.00023288,2]
[311103394,1704906641111,-382.92942887,0.00023288,4]
[311103396,1704906641120,-500.0,0.00023288,4]
[311103398,1704906641129,-232.6591214,0.00023288,4]
[311103400,1704906641138,-283.60103224,0.00023288,4]
[311103402,1704906641147,-386.42573114,0.00023288,2]
[311103404,1704906641156,-260.01212607,0.00023288,4]
[311103406,1704906641165,-183.16478034,0.00023288,4]
[311103408,1704906641174,-2741.13874823,0.00023377,2]
[311103410,1704906641184,-446.45,0.00023813,2]
[311103412,1704906641192,-413.46,0.00024031,2]
[311103414,1704906641202,-167.6,0.00024297,2]
[311103415,1704906641211,-423.24,0.00024466,2]
[311103417,1704906641220,-156.67,0.00024529,2]
[311103418,1704906641229,-1000.0,0.00024582,2]
[311103419,1704906641238,-300.0,0.00024589,2]
[311103420,1704906641247,-292.84,0.00024598,2]
[311103421,1704906641255,-3478.71,0.00024658,4]
[311103422,1704906641265,-446.45,0.00024791,2]
[311103423,1704906641274,-156.67,0.00024817,2]
[311103424,1704906641283,-350.0,0.00025,3]
[311103425,1704906641293,-201.59167609,0.00025,2]
[311103426,1704906641302,-153.77429268,0.0002509,2]
[311103427,1704906641311,-1319.64206288,0.000251,2]
[311103429,1704906641321,-156.67,0.00025106,2]
[311103431,1704906641330,-413.46,0.00025123,2]
[311103433,1704906641340,-156.67,0.00025394,2]
[311103435,1704906641350,-292.84,0.00025494,2]
[311103437,1704906641359,-748.03,0.00025655,2]
[311103438,1704906641368,-156.67,0.00025683,2]
[311103441,1704906641378,-446.45,0.00025769,2]
[311103442,1704906641387,-748.03,0.0002579,2]
[311103445,1704906641396,-748.03,0.00025925,2]
[311103446,1704906641406,-156.67,0.00025971,2]
[311103448,1704906641414,-748.03,0.0002606,2]
[311103451,1704906641424,-150.0,0.00026079,2]
[311103452,1704906641433,-748.03,0.00026195,2]
[311103455,1704906641443,-413.46,0.00026215,2]
[311103457,1704906641452,-156.67,0.0002626,2]
[311103458,1704906641462,-748.03,0.0002633,2]
[311103460,1704906641471,-292.84,0.00026389,2]
[311103463,1704906641480,-748.03,0.00026465,2]
[311103464,1704906641489,-156.67,0.00026548,2]
[311103466,1704906641499,-3200.91,0.00026575,2]
[311103469,1704906641508,-447.66,0.00026575,2]
[311103471,1704906641518,-748.03,0.000266,2]
[311103473,1704906641527,-423.24,0.00026729,2]
[311103475,1704906641537,-748.03,0.00026735,2]
[311103477,1704906641546,-446.45,0.00026748,2]
[311103479,1704906641555,-156.67,0.00026836,2]
[311103481,1704906641565,-7318.95477836,0.00026869,5]
[311103483,1704906641574,-748.03,0.0002687,2]
[311103485,1704906641584,-400.0,0.00027,3]
[311103487,1704906641592,-748.03,0.00027005,2]
[311103489,1704906641602,-156.67,0.00027125,2]
[311103491,1704906641610,-748.03,0.0002714,2]
[311103493,1704906641619,-748.03,0.00027275,2]
[311103495,1704906641628,-292.84,0.00027285,2]
[311103497,1704906641638,-1000.0,0.00027314,2]
[311103499,1704906641647,-150.46942521,0.00027397,2]
[311103500,1704906641656,-3000.0,0.00027397,2]
[311103502,1704906641665,-3000.0,0.00027397,2]
[311103504,1704906641675,-4878.6747,0.00027397,2]
[311103506,1704906641687,-155.0,0.00027397,2]
[311103508,1704906641696,-2500.0,0.00027397,4]
[311103510,1704906641705,-250.0,0.00027397,2]
[311103512,1704906641714,-101188.0,0.00027397,4]
[311103514,1704906641723,-250.0,0.000274,2]
[311103516,1704906641732,-307.73,0.000274,2]
[311103518,1704906641741,-307.73,0.000274,2]
[311103520,1704906641751,-307.73,0.000274,2]
[311103522,1704906641760,-307.73,0.000274,2]
[311103524,1704906641770,-307.73,0.000274,2]
[311103526,1704906641779,-307.73,0.000274,2]
[311103528,1704906641788,-307.73,0.000274,2]
[311103530,1704906641797,-307.73,0.000274,2]
[311103532,1704906641806,-307.73,0.000274,2]
[311103534,1704906641815,-307.73,0.000274,2]
[311103536,1704906641823,-748.03,0.0002741,2]
[311103538,1704906641832,-156.67,0.00027413,2]
[311103540,1704906641841,-748.03,0.00027545,2]
[311103542,1704906641850,-748.03,0.0002768,2]
[311103544,1704906641859,-156.67,0.00027702,2]
[311103546,1704906641868,-446.45,0.00027726,2]
[311103548,1704906641877,-748.03,0.00027815,2]
[311103550,1704906641887,-748.03,0.0002795,2]
[311103552,1704906641896,-156.67,0.0002799,2]
[311103554,1704906641905,-687.51052193,0.00028,2]
[311103556,1704906641914,-200.0,0.00028,2]
[311103558,1704906641922,-748.03,0.00028085,2]
[311103560,1704906641931,-292.84,0.00028181,2]
[311103562,1704906641940,-748.03,0.0002822,2]
[311103564,1704906641949,-156.67,0.00028278,2]
[311103566,1704906641958,-167.6,0.00028307,2]
[311103568,1704906641967,-156.67,0.00028567,2]
[311103570,1704906641976,-446.45,0.00028705,2]
[311103572,1704906641985,-155.0,0.00028767,2]
[311103574,1704906641994,-156.67,0.00028855,2]
[311103576,1704906642004,-8973.3595,0.000289,2]
[311103578,1704906642016,-23906.6989,0.000289,2]
[311103580,1704906642025,-53943.4309,0.000289,2]
[311103582,1704906642034,-423.24,0.00028993,2]
[311103584,1704906642043,-512473.80917047,0.00029,2]
[311103587,1704906642054,-450.0,0.00029,3]
[311103589,1704906642064,-498.91239264,0.00029,15]
[311103590,1704906642073,-292.84,0.00029076,2]
[311103593,1704906642082,-18149.22837925,0.0002909,2]
[311103595,1704906642093,-2508.6176807,0.00029091,5]
[311103597,1704906642103,-156.67,0.00029144,2]
[311103599,1704906642112,-1920.758059,0.000292,2]
[311103601,1704906642122,-8749.99,0.000295,2]
[311103603,1704906642130,-3910.25,0.000295,2]
[311103604,1704906642141,-8749.99,0.000295,2]
[311103606,1704906642150,-8750.0,0.000295,2]
[311103609,1704906642160,-1020.60072083,0.000295,2]
[311103610,1704906642169,-446.45,0.00029683,2]
[311103613,1704906642178,-8750.0,0.00029694,2]
[311103615,1704906642188,-233.9396641,0.0002971,2]
[311103617,1704906642197,-195.63942812,0.000298,2]
[311103619,1704906642206,-544482.94917969,0.000298,2]
[311103620,1704906642215,-8750.0,0.00029888,2]
[311103622,1704906642224,-386.31699313,0.000299,2]
[311103625,1704906642233,-1093.73395452,0.0002996,2]
[311103626,1704906642242,-168.88314352,0.00029997,2]
[311103629,1704906642252,-580.67437713,0.0003,2]
[311103630,1704906642262,-2734.28685204,0.0003,2]
[311103633,1704906642271,-155.0,0.0003,2]
[311103634,1704906642281,-690.55381442,0.0003,2]
[311103636,1704906642290,-588.39979529,0.0003,7]
[311103638,1704906642299,-72779.47975049,0.0003,4]
[311103641,1704906642309,-9797.76239264,0.0003,4]
[311103642,1704906642318,-59025.81387214,0.0003,4]
[311103644,1704906642328,-15505.42446284,0.0003,2]
[311103646,1704906642337,-323.72105756,0.0003,2]
[311103649,1704906642347,-423421.71256397,0.0003,2]
[311103651,1704906642356,-156.0,0.0003,2]
[311103653,1704906642365,-156.0,0.0003,2]
[311103672,1704906642374,-1000.0,0.00030045,2]
[311103675,1704906642542,-8750.0,0.00030081,2]
[311103677,1704906642552,-859.40936425,0.000301,2]
[311103679,1704906642563,-287.53123259,0.00030136,2]
[311103680,1704906642572,-153.84,0.00030137,2]
[311103683,1704906642582,-10000.0,0.00030137,2]
[311103686,1704906642591,-155.0,0.00030137,2]
[311103688,1704906642600,-1323.172,0.00030163,2]